bitfinex-derivatives/quotes_SOLF0:USTF0_20250109
["timestamp","ask_amount","ask_price","bid_price","bid_amount"]
[1736460306703,12.60721493,185.19,185.07,12.60721493]
[1736460306899,2.7005,185.16,185.09,2.7014]
[1736460307203,12.60721493,185.19,185.09,2.7014]
[1736460307401,2.7009,185.14,185.09,2.7014]
[1736460307602,12.60721493,185.19,185.08,2.7016]
[1736460308203,2.701,185.13,185.08,2.7016]
[1736460308403,12.60721493,185.19,185.07,15.30901493]
[1736460308605,12.60721493,185.16,185.04,17.41881493]
[1736460308901,17.60721493,185.16,185.04,17.41881493]
[1736460309098,17.60721493,185.16,185.06,2.7019]
[1736460309404,2.7013,185.11,185.04,17.41881493]
[1736460309605,17.60721493,185.16,185.04,17.41881493]
[1736460309995,17.60721493,185.16,185.07,2.7018]
[1736460310199,17.60721493,185.16,185.04,17.41881493]
[1736460310604,2.701,185.12,185.04,17.41881493]
[1736460310804,17.60721493,185.16,185.04,4.8116]
[1736460311206,12.60721493,185.13,185.04,4.8116]
[1736460313209,12.60721493,185.13,185.04,7.5137]
[1736460313404,12.60721493,185.13,185.01,12.60721493]
[1736460314107,12.60721493,185.13,185.03,2.7023]
[1736460314406,12.60721493,185.13,185.01,15.30971493]
[1736460314605,4.5615,185.12,185.01,15.30971493]
[1736460314807,12.60721493,185.1,185.0,4.64]
[1736460315008,2.7022,185.04,185.0,3.081]
[1736460315313,5.0,185.09,185.0,3.081]
[1736460315603,5.0,185.09,184.98,12.60721493]
[1736460315910,2.7031,184.99,184.95,1.559]
[1736460316108,12.60721493,185.04,184.94,29.95036574]
[1736460316307,12.60721493,185.01,184.94,29.95036574]
[1736460316502,2.7035,184.95,184.94,29.95036574]
[1736460317215,2.7035,184.95,184.89,15.31151493]
[1736460317405,2.7035,184.95,184.89,12.60721493]
[1736460317606,2.7033,184.97,184.89,12.60721493]
[1736460318105,12.60721493,184.98,184.88,4.7212]
[1736460319411,20.22156247,185.0,184.88,4.7212]
[1736460319812,20.22156247,185.0,184.88,7.4257]
[1736460322012,2.7038,184.93,184.88,7.4257]
[1736460322916,2.7038,184.93,184.88,4.7212]
[1736460323117,2.7038,184.93,184.89,2.7044]
[1736460325217,20.22156247,185.0,184.86,57.42692767]
[1736460325417,20.22156247,184.97,184.83,4.8179]
[1736460325610,20.22156247,184.94,184.78,42.68433678]
[1736460325814,9.725,184.93,184.78,47.50223678]
[1736460326010,9.725,184.93,184.8,2.7057]
[1736460326216,20.22156247,184.91,184.8,2.7057]
[1736460326416,2.7051,184.84,184.79,2.7059]
[1736460326613,20.22156247,184.91,184.78,34.76826574]
[1736460326818,20.22156247,184.91,184.78,31.52186574]
[1736460327015,2.7054,184.83,184.78,34.22786574]
[1736460327414,20.22156247,184.91,184.78,29.95036574]
[1736460327620,20.22156247,184.91,184.75,20.22156247]
[1736460327815,20.22156247,184.91,184.77,2.7061]
[1736460329313,2.7055,184.82,184.77,2.7061]
[1736460330118,5.0,184.86,184.75,20.22156247]
[1736460330421,2.7053,184.83,184.78,2.706]
[1736460331310,5.0,184.86,184.75,20.22156247]
[1736460331514,5.0,184.88,184.75,20.22156247]
[1736460331919,2.7053,184.83,184.75,20.22156247]
[1736460332424,2.7053,184.83,184.78,2.706]
[1736460332613,2.7051,184.84,184.75,20.22156247]
[1736460333024,5.0,184.88,184.78,2.7059]
[1736460334721,2.7055,184.82,184.78,2.7059]
[1736460336722,5.0,184.88,184.75,20.22156247]
[1736460336921,5.0,184.9,184.75,20.22156247]
[1736460338015,20.22156247,184.85,184.72,1.643]
[1736460338224,20.22156247,184.82,184.72,1.643]
[1736460339120,2.7059,184.79,184.72,1.643]
[1736460339326,20.22156247,184.82,184.72,1.643]
[1736460340227,20.22156247,184.82,184.7,8.32528977]
[1736460341127,2.7062,184.77,184.72,2.7069]
[1736460341323,12.66072299,184.81,184.7,8.32528977]
[1736460342224,12.66072299,184.81,184.68,4.552]
[1736460342225,12.66072299,184.78,184.68,3.0539]
[1736460342419,12.66072299,184.75,184.63,12.66072299]
[1736460342625,17.66072299,184.75,184.63,12.66072299]
[1736460342929,2.7074,184.69,184.64,2.708]
[1736460343228,17.66072299,184.75,184.64,2.708]
[1736460343720,17.66072299,184.75,184.61,1.4946]
[1736460343917,17.66072299,184.75,184.66,2.7077]
[1736460344117,2.7071,184.71,184.66,2.7077]
[1736460344327,17.66072299,184.75,184.66,2.7077]
[1736460344527,17.66072299,184.75,184.63,12.66072299]
[1736460344727,1.5847,184.74,184.63,12.66072299]
[1736460345028,12.66072299,184.72,184.61,1.4946]
[1736460346228,12.66072299,184.72,184.6,15.70042299]
[1736460346623,2.7077,184.67,184.61,2.7084]
[1736460346818,12.66072299,184.72,184.61,2.7084]
[1736460347230,12.66072299,184.72,184.62,2.7083]
[1736460348227,12.66072299,184.72,184.6,15.70042299]
[1736460348531,1.607,184.73,184.61,12.66072299]
[1736460348824,14.26772299,184.73,184.61,12.66072299]
[1736460349032,12.66072299,184.7,184.6,1.5416]
[1736460349230,12.66072299,184.7,184.56,1.5581]
[1736460349530,12.66072299,184.67,184.54,1.6065]
[1736460349731,1.5179,184.66,184.54,1.6065]
[1736460349934,1.5179,184.66,184.55,2.7093]
[1736460350530,2.7086,184.61,184.56,2.7092]
[1736460351433,1.5179,184.66,184.59,2.7088]
[1736460351434,2.7081,184.64,184.59,2.7088]
[1736460351636,1.5179,184.66,184.56,12.66072299]
[1736460351931,2.7078,184.66,184.59,2.7088]
[1736460352133,2.7078,184.66,184.56,12.66072299]
[1736460352334,2.7078,184.66,184.59,12.66072299]
[1736460352534,5.02,184.67,184.59,12.66072299]
[1736460352735,2.7079,184.65,184.6,2.7085]
[1736460353034,5.02,184.67,184.59,12.66072299]
[1736460353234,17.68072299,184.7,184.59,12.66072299]
[1736460353436,17.68072299,184.7,184.61,2.7084]
[1736460353734,17.68072299,184.7,184.59,12.66072299]
[1736460354436,2.7078,184.66,184.61,2.7085]
[1736460355234,2.708,184.65,184.61,2.7085]
[1736460356139,2.7084,184.62,184.58,2.7088]
[1736460357335,12.66072299,184.67,184.56,12.66072299]
[1736460358133,2.7083,184.63,184.59,2.7087]
[1736460358333,2.7083,184.63,184.56,12.66072299]
[1736460359139,2.7084,184.62,184.58,2.7088]
[1736460359335,12.66072299,184.67,184.58,2.7088]
[1736460359640,12.66072299,184.67,184.54,6.6265]
[1736460359830,2.7088,184.6,184.55,2.7092]
[1736460360035,12.66072299,184.64,184.55,2.7092]
[1736460360744,2.7088,184.6,184.54,1.6065]
[1736460361639,12.66072299,184.64,184.54,1.6065]
[1736460362250,12.66072299,184.58,184.51,7.48759143]
[1736460362449,2.7092,184.56,184.51,7.48759143]
[1736460362749,2.7092,184.56,184.52,2.7097]
[1736460363647,2.7088,184.59,184.56,2.7092]
[1736460363851,12.66072299,184.61,184.56,2.7092]
[1736460364544,2.7089,184.58,184.54,2.7094]
[1736460365149,2.7092,184.57,184.54,2.7094]
[1736460365349,2.7092,184.57,184.53,2.7097]
[1736460365550,12.66072299,184.61,184.53,2.7097]
[1736460365852,2.7093,184.56,184.52,2.7098]
[1736460366049,12.66072299,184.58,184.48,5.79557006]
[1736460366250,12.66072299,184.58,184.47,3.0527]
[1736460366446,2.7096,184.54,184.5,2.71]
[1736460368151,2.7096,184.54,184.51,2.7099]
[1736460368449,20.30641791,184.56,184.44,29.95036574]
[1736460368654,20.30641791,184.56,184.47,2.7105]
[1736460368851,20.30641791,184.56,184.44,29.95036574]
[1736460369353,2.7098,184.52,184.48,2.7103]
[1736460369558,2.7098,184.52,184.44,29.95036574]
[1736460369853,2.7098,184.52,184.42,12.20839143]
[1736460370057,2.7098,184.52,184.48,2.7103]
[1736460370758,5.02,184.57,184.42,25.02721791]
[1736460371453,5.02,184.57,184.51,2.7099]
[1736460371753,5.02,184.57,184.45,20.30641791]
[1736460371953,2.709,184.58,184.54,2.7094]
[1736460372157,26.86511791,184.62,184.48,20.30641791]
[1736460372358,26.86511791,184.62,184.49,1.5629]
[1736460372656,2.7088,184.59,184.55,2.7093]
[1736460373655,20.30641791,184.56,184.43,29.95036574]
[1736460373860,20.30641791,184.53,184.43,29.95036574]
[1736460374061,20.30641791,184.53,184.44,7.48759143]
[1736460374256,2.7104,184.49,184.44,7.48759143]
[1736460374458,20.30641791,184.5,184.44,7.48759143]
[1736460375659,2.7106,184.47,184.41,2.7114]
[1736460376459,25.32641791,184.47,184.37,1.5423]
[1736460377164,20.30641791,184.44,184.35,7.48759143]
[1736460377760,20.30641791,184.44,184.33,61.50863151]
[1736460377761,2.7116,184.41,184.36,2.7122]
[1736460378055,5.02,184.4,184.32,29.95036574]
[1736460378260,20.30641791,184.37,184.32,29.95036574]
[1736460378652,20.30641791,184.41,184.32,29.95036574]
[1736460378856,2.7119,184.38,184.32,29.95036574]
[1736460379160,2.7119,184.38,184.29,4.7016]
[1736460379360,20.30641791,184.41,184.29,4.7016]
[1736460379860,2.7123,184.36,184.29,7.4147]
[1736460380459,2.7132,184.29,184.2,7.48759143]
[1736460380665,25.32641791,184.32,184.2,7.48759143]
[1736460381661,25.32641791,184.32,184.19,3.1747]
[1736460382767,20.30641791,184.29,184.17,1.5778]
[1736460383361,2.7141,184.23,184.17,4.2926]
[1736460383664,20.30641791,184.29,184.17,1.5778]
[1736460383868,2.714,184.24,184.18,2.7147]
[1736460384369,2.7141,184.23,184.17,2.715]
[1736460384757,5.02,184.25,184.12,3.0521]
[1736460385160,20.30641791,184.23,184.06,7.48759143]
[1736460385358,1.5111,184.24,183.97,84.62]
[1736460385359,20.30641791,184.2,184.05,7.48759143]
[1736460385564,20.30641791,184.2,184.06,1.5366]
[1736460385966,20.30641791,184.17,184.06,1.5366]
[1736460386162,2.7158,184.12,184.05,10.20419143]
[1736460386368,20.30641791,184.14,184.05,7.48759143]
[1736460386664,20.30641791,184.14,184.04,2.7168]
[1736460386665,2.7159,184.12,184.04,2.7168]
[1736460386868,20.30641791,184.14,184.03,3.1076]
[1736460387068,4.857,184.15,184.03,3.1076]
[1736460387270,20.30641791,184.14,184.03,3.1076]
[1736460387769,2.7154,184.14,184.07,2.7164]
[1736460388663,4.857,184.15,184.08,2.7163]
[1736460389265,20.30641791,184.11,184.04,0.25418]
[1736460389972,5.06,184.12,184.04,0.25418]
[1736460390269,4.857,184.15,184.04,0.25418]
[1736460390669,20.30641791,184.17,184.1,2.716]
[1736460390670,2.7151,184.17,184.1,2.716]
[1736460390965,5.08,184.19,184.04,0.25418]
[1736460391167,6.6947,184.19,184.05,21.30466244]
[1736460391368,2.7149,184.18,184.11,2.7157]
[1736460391965,1.6147,184.19,184.06,5.08]
[1736460392267,1.6147,184.19,184.07,0.99809131]
[1736460392469,1.6147,184.19,184.04,5.33418]
[1736460392665,1.6147,184.19,184.05,0.9981822]
[1736460392868,1.6147,184.19,184.04,5.33418]
[1736460393070,20.30641791,184.12,184.04,0.25418]
[1736460393270,25.38641791,184.15,184.04,0.25418]
[1736460394166,5.08,184.15,184.04,0.25418]
[1736460394366,5.08,184.15,184.02,18.56059791]
[1736460394562,5.08,184.15,184.03,0.99827878]
[1736460394769,2.7154,184.14,184.03,0.99827878]
[1736460394968,3.267,184.18,184.04,6.07827878]
[1736460395165,2.7152,184.16,184.09,2.716]
[1736460395361,3.267,184.18,184.06,1.6172]
[1736460395561,3.267,184.18,184.07,3.2221]
[1736460396674,2.715,184.17,184.12,2.7157]
[1736460397273,3.126,184.27,184.15,2.7152]
[1736460397467,1.5446,184.26,184.11,5.08]
[1736460397672,5.08,184.35,184.12,0.99768378]
[1736460397873,4.625,184.34,184.12,0.99768378]
[1736460398073,4.625,184.34,184.13,6.07762942]
[1736460398269,2.7137,184.26,184.2,2.7145]
[1736460398469,4.625,184.34,184.14,1.5742]
[1736460398875,4.625,184.34,184.15,0.9975038]
[1736460399875,4.625,184.34,184.16,5.08]
[1736460400175,4.625,184.34,184.26,2.7136]
[1736460400973,2.7131,184.3,184.22,2.7142]
[1736460401275,2.7131,184.3,184.17,3.0726]
[1736460401474,4.625,184.34,184.18,0.99738313]
[1736460401772,2.713,184.31,184.25,2.7138]
[1736460402576,2.713,184.31,184.17,3.0726]
[1736460402771,2.713,184.31,184.18,0.99736886]
[1736460403276,2.713,184.31,184.25,2.7137]
[1736460403477,2.7131,184.3,184.25,2.7137]
[1736460404878,4.625,184.34,184.17,3.0726]
[1736460405375,4.625,184.34,184.16,2.7151]
[1736460405574,4.625,184.34,184.14,1.5742]
[1736460406570,16.24,184.32,184.1,3.0228]
[1736460406776,21.3,184.31,184.1,3.0228]
[1736460407369,5.06,184.31,184.1,3.0228]
[1736460408276,2.714,184.24,184.1,3.0228]
[1736460408478,5.06,184.31,184.1,3.0228]
[1736460408680,5.06,184.3,184.1,3.0228]
[1736460408880,2.7145,184.21,184.1,3.0228]
[1736460409184,5.06,184.23,184.1,3.0228]
[1736460409376,3.1068,184.2,184.06,1.5071]
[1736460409681,3.1068,184.2,184.07,0.99800284]
[1736460410379,5.8214,184.2,184.07,0.99800284]
[1736460410580,3.1068,184.2,184.07,0.99800284]
[1736460410883,1.6068,184.22,184.07,0.99800284]
[1736460411079,2.7145,184.21,184.07,0.99800284]
[1736460411382,1.6068,184.22,184.07,0.99800284]
[1736460411583,2.7147,184.19,184.14,2.7153]
[1736460411779,1.6068,184.22,184.07,7.48759143]
[1736460411980,1.6068,184.22,184.08,0.99790289]
[1736460412378,1.6068,184.22,184.08,30.94826863]
[1736460412574,1.6068,184.22,184.08,29.95036574]
[1736460413078,2.7147,184.19,184.14,2.7153]
[1736460414582,2.7144,184.21,184.16,2.715]
[1736460414780,3.1341,184.24,184.09,7.48759143]
[1736460414982,3.1341,184.24,184.1,0.99780459]
[1736460415175,2.7142,184.22,184.17,2.7148]
[1736460415385,3.1341,184.24,184.11,5.08]
[1736460416576,3.1341,184.24,184.14,2.7153]
[1736460416577,2.7148,184.19,184.14,2.7153]
[1736460417173,2.7148,184.19,184.15,2.7152]
[1736460421886,5.06,184.2,184.09,7.48759143]
[1736460422484,2.7156,184.14,184.09,10.20369143]
[1736460422784,5.06,184.2,184.09,10.20369143]
[1736460422978,5.06,184.2,184.09,2.7161]
[1736460423686,2.7156,184.13,184.09,2.7161]
[1736460424182,5.06,184.2,184.06,2.7166]
[1736460424380,5.06,184.2,184.05,3.1154]
[1736460424886,2.7153,184.16,184.12,2.7157]
[1736460425081,5.06,184.2,184.05,3.1154]
[1736460425282,2.7153,184.15,184.11,2.7157]
[1736460425779,5.06,184.2,184.05,3.1154]
[1736460425982,2.7151,184.16,184.05,10.60299143]
[1736460426478,3.1341,184.24,184.06,6.05807413]
[1736460426687,3.1341,184.24,184.07,0.99807413]
[1736460426886,3.1341,184.24,184.06,5.06]
[1736460427182,3.1341,184.24,184.07,0.99801641]
[1736460427683,2.7145,184.2,184.08,1.5969]
[1736460427883,3.1341,184.24,184.08,36.3701862]
[1736460428584,1.5047,184.26,184.18,2.7148]
[1736460429181,2.7144,184.22,184.18,2.7148]
[1736460429378,2.7144,184.22,184.17,2.715]
[1736460429579,2.7144,184.22,184.14,3.2297]
[1736460429885,1.5047,184.26,184.17,2.7149]
[1736460430180,1.5047,184.26,184.14,3.2297]
[1736460430389,2.7142,184.23,184.14,3.2297]
[1736460430590,1.5047,184.26,184.17,2.7149]
[1736460431288,2.7143,184.22,184.17,2.7149]
[1736460431482,1.5047,184.26,184.17,2.7149]
[1736460431677,2.7144,184.21,184.17,2.7149]
[1736460432186,1.5047,184.26,184.14,3.2297]
[1736460432689,2.7142,184.23,184.14,3.2297]
[1736460433079,1.5047,184.26,184.14,3.2297]
[1736460433386,3.2373,184.3,184.14,3.2297]
[1736460433779,3.2373,184.3,184.2,2.7144]
[1736460434183,2.7135,184.27,184.2,2.7144]
[1736460434380,3.2373,184.3,184.19,2.7146]
[1736460434584,3.2373,184.3,184.14,3.2297]
[1736460434983,1.4975,184.29,184.14,3.2297]
[1736460435486,1.4975,184.29,184.16,2.7151]
[1736460435990,2.7145,184.21,184.16,2.7151]
[1736460436790,2.7145,184.21,184.17,2.7149]
[1736460437391,1.4975,184.29,184.14,3.2297]
[1736460437591,2.7143,184.22,184.18,2.7148]
[1736460438586,2.7144,184.21,184.17,2.7149]
[1736460438994,5.04,184.25,184.1,7.48759143]
[1736460439496,5.04,184.25,184.09,33.02166574]
[1736460439690,5.04,184.25,184.09,29.95036574]
[1736460440296,2.716,184.11,184.05,29.95036574]
[1736460440490,5.06,184.17,184.05,29.95036574]
[1736460440690,5.06,184.17,184.08,2.7163]
[1736460441589,2.7158,184.12,184.07,2.7164]
[1736460442096,2.7165,184.07,184.02,7.48759143]
[1736460442485,2.7165,184.07,184.02,10.20479143]
[1736460442692,2.7166,184.06,184.02,7.48759143]
[1736460442888,4.6661,184.16,184.02,7.48759143]
[1736460443494,9.7461,184.16,183.99,4.7018]
[1736460443686,9.7461,184.16,184.09,2.7161]
[1736460444089,9.7461,184.16,184.03,5.08]
[1736460444294,9.7461,184.16,184.07,2.7163]
[1736460444596,2.7157,184.13,184.07,2.7163]
[1736460445495,2.7157,184.12,184.07,2.7163]
[1736460445898,2.7153,184.15,184.03,5.08]
[1736460446200,5.08,184.21,184.03,5.08]
[1736460446401,1.5016,184.2,184.03,5.08]
[1736460446597,1.5016,184.2,184.09,2.7161]
[1736460447301,2.7155,184.14,184.03,5.08]
[1736460447502,1.5016,184.2,184.03,5.08]
[1736460447697,2.7153,184.15,184.03,5.08]
[1736460448005,1.5016,184.2,184.09,2.7161]
[1736460448400,2.7155,184.14,184.09,2.7161]
[1736460450100,2.7155,184.14,184.03,5.08]
[1736460450305,2.7155,184.14,184.1,2.716]
[1736460451105,1.5016,184.2,184.04,5.1]
[1736460451307,1.5016,184.2,184.02,7.48759143]
[1736460451609,2.7169,184.04,184.02,7.48759143]
[1736460452213,5.12,184.12,184.02,2.7171]
[1736460452509,5.12,184.12,183.99,12.18939143]
[1736460452709,2.7163,184.08,184.02,2.717]
[1736460452909,2.7163,184.08,183.99,12.18939143]
[1736460453114,2.7163,184.08,183.99,4.7018]
[1736460453407,2.7167,184.06,184.01,2.7172]
[1736460453914,2.7167,184.06,184.02,2.7171]
[1736460454412,5.12,184.12,183.95,114.69036574]
[1736460454609,4.8459,184.11,183.95,119.62606574]
[1736460455201,2.717,184.04,184.0,2.7174]
[1736460455409,2.717,184.04,183.95,119.62606574]
[1736460455607,2.717,184.04,183.95,89.6757]
[1736460456407,2.717,184.04,184.0,2.7174]
[1736460456607,2.7166,184.07,183.95,89.6757]
[1736460457008,1.6381,184.11,184.05,2.7167]
[1736460457211,2.716,184.1,184.0,5.12]
[1736460457613,5.12,184.14,184.0,5.12]
[1736460458915,5.12,184.22,184.0,5.12]
[1736460460105,5.12,184.22,183.96,29.95036574]
[1736460460311,5.12,184.22,183.97,12.64135514]
[1736460460508,5.12,184.22,184.01,4.82936601]
[1736460461613,2.7158,184.12,184.08,2.7163]
[1736460462111,5.12,184.22,183.98,4.82936601]
[1736460462309,5.12,184.22,183.97,41.59329951]
[1736460462513,5.12,184.22,183.98,5.1]
[1736460462811,2.7161,184.1,184.05,2.7167]
[1736460463012,2.7161,184.1,183.98,5.1]
[1736460463311,2.7161,184.1,184.06,2.7166]
[1736460463916,2.7161,184.1,183.98,5.1]
[1736460464508,5.12,184.22,184.07,2.7163]
[1736460467211,5.12,184.22,183.98,5.1]
[1736460467817,4.8013,184.24,183.98,12.58759143]
[1736460468115,5.08,184.23,183.99,0.99828874]
[1736460468512,2.7154,184.14,184.1,2.7159]
[1736460468819,4.8013,184.24,184.05,5.08]
[1736460469019,5.08,184.23,184.06,8.2104]
[1736460469210,8.2704,184.24,184.07,6.621]
[1736460469412,3.1904,184.24,184.07,6.621]
[1736460469624,8.2704,184.24,184.07,6.621]
[1736460470316,3.1904,184.24,184.07,6.621]
[1736460470713,2.7149,184.18,184.07,6.621]
[1736460471309,3.1904,184.24,184.07,6.621]
[1736460471513,3.1904,184.24,184.14,2.7154]
[1736460471916,2.715,184.17,184.13,2.7155]
[1736460472117,3.1904,184.24,184.07,1.541]
[1736460472320,3.1904,184.24,184.07,6.621]
[1736460472518,2.7154,184.15,184.11,2.7157]
[1736460474321,2.7154,184.15,184.07,6.621]
[1736460474516,2.7154,184.15,184.12,2.7157]
[1736460476423,3.1904,184.24,184.12,2.7157]
[1736460476624,2.7151,184.16,184.12,2.7157]
[1736460477523,3.1904,184.24,184.07,6.621]
[1736460477715,2.715,184.17,184.13,2.7154]
[1736460478921,2.7151,184.16,184.13,2.7154]
[1736460481027,3.1904,184.24,184.07,6.621]
[1736460481717,2.7152,184.16,184.13,2.7155]
[1736460486525,3.1904,184.24,184.13,2.7155]
[1736460486731,3.1904,184.24,184.07,1.541]
[1736460487133,2.7158,184.12,184.07,1.541]
[1736460487629,5.4283,184.23,184.07,1.541]
[1736460487931,8.2104,184.24,184.07,1.541]
[1736460490232,8.2104,184.24,184.05,7.48759143]
[1736460490530,24.5204,184.24,184.04,7.48759143]
[1736460490729,9.01659716,184.23,184.04,7.48759143]
[1736460491036,2.7164,184.08,184.04,7.48759143]
[1736460491229,5.02,184.14,184.04,7.48759143]
[1736460491431,5.02,184.14,184.03,25.17967431]
[1736460491432,3.1124,184.13,184.03,2.7169]
[1736460491832,3.1124,184.13,184.04,2.7169]
[1736460492227,2.7164,184.08,184.04,2.7169]
[1736460493933,3.1124,184.13,184.0,79.67537271]
[1736460495139,2.7161,184.1,184.04,2.7168]
[1736460495340,3.1124,184.13,184.04,2.7168]
[1736460495834,2.7163,184.08,184.04,2.7168]
[1736460496240,3.1124,184.13,184.02,2.7171]
[1736460496434,2.7162,184.09,184.0,3.1028]
[1736460496641,1.4992,184.12,184.0,3.1028]
[1736460497237,2.7169,184.04,184.0,3.1028]
[1736460498137,2.7169,184.04,184.0,5.8203]
[1736460498444,2.7166,184.06,184.0,3.1028]
[1736460498641,1.4992,184.12,184.01,2.7173]
[1736460499342,2.7168,184.05,184.01,2.7173]
[1736460499731,1.4992,184.12,184.0,3.1028]
[1736460499932,2.7165,184.07,184.0,3.1028]
[1736460500739,2.7165,184.07,184.03,2.7169]
[1736460500942,1.4992,184.12,184.0,3.1028]
[1736460501134,1.4992,184.12,184.0,5.8201]
[1736460501336,1.4992,184.12,183.97,7.48759143]
[1736460501939,2.7177,183.99,183.97,7.48759143]
[1736460502242,5.02,184.06,183.92,10.67179143]
[1736460502439,8.1137,184.05,183.92,10.67179143]
[1736460502646,2.7179,183.98,183.93,2.7185]
[1736460503043,2.7179,183.97,183.93,2.7185]
[1736460503240,1.5375,184.04,183.95,2.7182]
[1736460504244,2.7177,183.99,183.95,2.7182]
[1736460504941,1.5375,184.04,183.92,3.1842]
[1736460505546,2.7179,183.98,183.93,2.7184]
[1736460506351,2.7181,183.96,183.92,2.7186]
[1736460506849,2.7182,183.95,183.92,2.7186]
[1736460508252,2.7182,183.95,183.91,2.7188]
[1736460508552,2.7186,183.93,183.87,87.9934]
[1736460508753,2.7186,183.93,183.87,86.3597]
[1736460509048,2.7183,183.95,183.9,2.7188]
[1736460510358,1.5375,184.04,183.88,2.7192]
[1736460511052,2.7185,183.93,183.89,2.7191]
[1736460511453,1.5375,184.04,183.87,1.5997]
[1736460511655,2.7177,183.99,183.94,2.7182]
[1736460511851,5.04,184.03,183.87,1.5997]
[1736460512965,2.7176,183.99,183.87,1.5997]
[1736460514064,2.7175,184.0,183.87,1.5997]
[1736460514259,1.5375,184.04,183.87,1.5997]
[1736460514555,1.5375,184.04,183.97,2.7178]
[1736460514754,2.7174,184.01,183.97,2.7178]
[1736460515355,2.7172,184.02,183.98,2.7177]
[1736460515551,5.04,184.08,183.91,5.04]
[1736460515755,2.7172,184.03,183.96,2.7181]
[1736460515957,2.7172,184.03,183.91,5.04]
[1736460516659,2.7172,184.02,183.98,2.7177]
[1736460517661,4.6775,184.1,183.91,5.04]
[1736460518659,4.6775,184.1,183.89,35.38846574]
[1736460518860,4.6775,184.1,183.98,2.7176]
[1736460519364,2.7171,184.03,183.99,2.7176]
[1736460519859,4.6775,184.1,184.02,2.7172]
[1736460519860,2.7168,184.05,184.02,2.7172]
[1736460520058,4.6775,184.1,184.02,2.7172]
[1736460520362,2.7163,184.08,183.93,3.1311]
[1736460520562,4.89815949,184.19,183.93,3.1311]
[1736460520860,3.2671,184.16,184.07,2.7163]
[1736460521061,3.2671,184.16,184.01,5.04]
[1736460521361,2.7151,184.16,184.02,1.5213]
[1736460521565,4.89815949,184.19,184.07,2.7164]
[1736460521863,2.715,184.17,184.04,74.99509541]
[1736460522065,4.89815949,184.19,184.08,2.7162]
[1736460522263,4.89815949,184.19,184.04,74.99509541]
[1736460522458,2.7153,184.15,184.04,74.99509541]
[1736460522662,2.7153,184.15,184.1,2.716]
[1736460524168,2.7151,184.16,184.11,2.7158]
[1736460524660,2.7149,184.18,184.12,2.7156]
[1736460524867,6.6053,184.22,184.04,74.99509541]
[1736460525466,1.5653,184.22,184.04,74.99509541]
[1736460526472,2.7146,184.2,184.15,2.7151]
[1736460528064,2.7143,184.22,184.17,2.7149]
[1736460528265,5.02,184.3,184.11,4.6682]
[1736460528972,5.02,184.3,184.2,2.7145]
[1736460529173,4.7906,184.32,184.2,2.7145]
[1736460529374,5.02,184.31,184.2,2.7145]
[1736460529775,4.7906,184.32,184.2,2.7145]
[1736460529973,5.02,184.31,184.2,2.7145]
[1736460530670,4.7906,184.32,184.21,2.7143]
[1736460530875,4.7906,184.32,184.11,4.6682]
[1736460530876,4.89436408,184.33,184.17,5.02]
[1736460531072,2.7137,184.26,184.17,5.02]
[1736460531471,2.7137,184.26,184.21,2.7143]
[1736460532075,1.5573,184.32,184.21,2.7143]
[1736460532276,2.7138,184.25,184.21,2.7143]
[1736460533474,2.7137,184.26,184.21,2.7143]
[1736460533674,3.2581,184.36,184.17,5.02]
[1736460533874,2.7125,184.34,184.17,5.02]
[1736460534179,5.02,184.4,184.3,2.7129]
[1736460534580,2.7122,184.36,184.24,5.02]
[1736460534778,2.7122,184.36,184.31,2.7129]